[Event "1st Turkish League 2017"]
[Site "Konya"]
[Date "2017.07.22"]
[Round "8"]
[White "Eminov, Orkhan"]
[Black "Gulbas, Cemil"]
[Result "1-0"]
[ECO "C13"]
[WhiteElo "2274"]
[BlackElo "2366"]
[Annotator "NA"]
[PlyCount "43"]
[EventType "team-tourn"]
[EventCountry "TUR"]
[SourceTitle "playchess.com"]
[Source "ChessBase"]
[SourceQuality "1"]
[TimeControl "5400+30"]

1. e4 {[%emt 0:00:00]} e6 {[%emt 0:01:00]} 2. d4 {[%emt 0:00:00]} d5 {[%emt 0:00:30]} 3. Nc3 {[%emt 0:00:30]} Nf6 {[%emt 0:00:30]} 4. Bg5 {[%emt 0:00:30]} dxe4 {[%emt 0:00:30]} 5. Nxe4 {[%emt 0:00:30]} Be7 {[%emt 0:00:30] [%clk 1:29]} 6. Bxf6 {[%emt 0:01:30]} gxf6 {[%emt 0:01:30]} 7. Nf3 {[%emt 0:07:30]} b6 {[%emt 0:00:30]} 8. Bc4 {[%emt 0:06:30]} Bb7 {[%emt 0:03:30]} 9. Qe2 {[%emt 0:03:30]} c6 {[%emt 0:02:30]} 10. O-O-O {[%emt 0:02:30]} Qc7 {[%emt 0:00:30]} 11. Rhe1 {[%emt 0:08:30]} Nd7 {[%emt 0:01:30]} 12. Kb1 $11 {[%emt 0:07:30] LiveBook: 93 Games} (12. Nc3 $5 {[%cal Rc4e6]} Bb4 13. Qe3 $11) 12... O-O-O {[%emt 0:06:30]} 13. Ba6 {[%emt 0:00:30]} f5 {[%emt 0:16:30]} 14. Neg5 {[%emt 0:07:30]} Rdf8 {[%emt 0:04:30]} 15. Bxb7+ {[%emt 0:05:30]} Kxb7 {[%emt 0:01:30]} 16. d5 {[%emt 0:20:30]} cxd5 {[%emt 0:06:30]} 17. Nxf7 {[%emt 0:03:30]} Rxf7 {[%emt 0:04:30]} 18. Qxe6 {[%emt 0:00:30]} Rhf8 {[%emt 0:02:30]} 19. Qxd5+ {[%emt 0:02:38]} Kc8 {[%emt 0:00:30]} 20. Nd4 {[%emt 0:03:20]} Bc5 {[%emt 0:14:30]} 21. Nb5 {[%emt 0:08:27]} Qb7 {[%emt 0:01:30]} 22. Qxf7 {[%emt 0:00:07]} 1-0

[Event "1st Turkish League 2017"]
[Site "Konya"]
[Date "2017.07.22"]
[Round "8"]
[White "Keler, Faruk"]
[Black "Uzunoglu, Efe Kerem"]
[Result "1-0"]
[ECO "D77"]
[WhiteElo "2262"]
[BlackElo "2058"]
[Annotator "NA"]
[PlyCount "65"]
[EventType "team-tourn"]
[EventCountry "TUR"]
[SourceTitle "playchess.com"]
[Source "ChessBase"]
[SourceQuality "1"]
[TimeControl "5400+30"]

1. d4 {[%emt 0:00:00]} Nf6 {[%emt 0:00:00]} 2. Nf3 {[%emt 0:00:00]} g6 {[%emt 0:00:00]} 3. g3 {[%emt 0:00:00]} Bg7 {[%emt 0:00:00]} 4. Bg2 {[%emt 0:00:00]} O-O {[%emt 0:00:30]} 5. O-O {[%emt 0:00:00]} d5 {[%emt 0:00:30]} 6. c4 {[%emt 0:00:00]} dxc4 {[%emt 0:00:30]} 7. Na3 {[%emt 0:00:30]} c3 {[%emt 0:00:30]} 8. bxc3 {[%emt 0:00:30]} c5 {[%emt 0:00:30]} 9. Ne5 {[%emt 0:00:30] [%clk 1:33]} Nd5 {[%emt 0:03:30]} 10. Bd2 {[%emt 0:00:30]} Nc6 {[%emt 0:10:30]} 11. Nxc6 {[%emt 0:01:30]} bxc6 {[%emt 0:00:30]} 12. Nc4 {[%emt 0:00:00]} Be6 $11 {[%emt 0:11:30] LiveBook: 3 Games} (12... Ba6 $5 {[%cal Ra6c4]} 13. Ne5 Qd6 $11) 13. Ne5 {[%emt 0:03:00]} Qc7 {[%emt 0:03:30]} 14. e4 {[%emt 0:32:30]} Nb6 {[%emt 0:02:30]} 15. Bf4 {[%emt 0:00:30]} g5 {[%emt 0:13:30]} 16. Be3 {[%emt 0:10:30]} Rad8 {[%emt 0:25:30]} 17. Qc1 {[%emt 0:02:30]} f6 {[%emt 0:00:30]} 18. Nd3 {[%emt 0:01:30]} cxd4 {[%emt 0:00:30]} 19. cxd4 {[%emt 0:00:30]} Nc4 {[%emt 0:02:30]} 20. Nc5 {[%emt 0:01:30]} Bf7 {[%emt 0:00:00]} 21. Bh3 {[%emt 0:00:00]} Nxe3 {[%emt 0:04:00]} 22. fxe3 {[%emt 0:03:00]} Rd6 {[%emt 0:03:03]} 23. Rb1 {[%emt 0:06:30]} Rb8 {[%emt 0:01:40]} 24. Rxb8+ {[%emt 0:01:30]} Qxb8 {[%emt 0:00:01]} 25. Qc2 {[%emt 0:00:30]} g4 {[%emt 0:02:21]} 26. Bxg4 {[%emt 0:01:30]} Bh6 {[%emt 0:00:06]} 27. Kf2 {[%emt 0:03:30]} Qb4 {[%emt 0:02:26]} 28. Rb1 {[%emt 0:01:30]} Qc4 {[%emt 0:00:27]} 29. Qxc4 {[%emt 0:00:30]} Bxc4 {[%emt 0:00:01]} 30. Rb8+ {[%emt 0:01:30]} Kg7 {[%emt 0:02:09]} 31. Rb7 {[%emt 0:00:30]} Kf8 {[%emt 0:01:58]} 32. Rxa7 {[%emt 0:00:30]} e5 {[%emt 0:00:17]} 33. Nb7 {[%emt 0:03:30]} 1-0

[Event "1st Turkish League 2017"]
[Site "Konya"]
[Date "2017.07.22"]
[Round "8"]
[White "Isik, Alparslan"]
[Black "Guncan, Berke"]
[Result "1/2-1/2"]
[ECO "E17"]
[WhiteElo "2211"]
[BlackElo "2043"]
[Annotator "NA"]
[PlyCount "63"]
[EventType "team-tourn"]
[EventCountry "TUR"]
[SourceTitle "playchess.com"]
[Source "ChessBase"]
[SourceQuality "1"]
[TimeControl "5400+30"]

1. d4 {[%emt 0:00:00]} Nf6 {[%emt 0:00:00]} 2. c4 {[%emt 0:00:00]} e6 {[%emt 0:00:30]} 3. Nf3 {[%emt 0:00:00]} b6 {[%emt 0:00:30]} 4. g3 {[%emt 0:00:00]} Bb7 {[%emt 0:00:30]} 5. Bg2 {[%emt 0:00:00]} Be7 {[%emt 0:00:30]} 6. O-O {[%emt 0:00:00]} O-O {[%emt 0:00:30]} 7. d5 {[%emt 0:00:30] [%clk 1:33]} Ne4 {[%emt 0:06:30]} 8. Nd4 {[%emt 0:05:30]} exd5 {[%emt 0:02:30]} 9. cxd5 {[%emt 0:00:30]} Bxd5 {[%emt 0:01:30]} 10. Nf5 {[%emt 0:01:30]} Bc6 {[%emt 0:04:30]} 11. Nxg7 {[%emt 0:08:30]} Nxf2 {[%emt 0:05:30]} 12. Rxf2 {[%emt 0:00:30]} Kxg7 {[%emt 0:00:00]} 13. Qd4+ {[%emt 0:02:30]} f6 {[%emt 0:03:00]} 14. Qh4 {[%emt 0:01:30]} Bc5 {[%emt 0:03:30] [#]} 15. Bh6+ $1 {[%emt 0:02:30]} Kh8 $16 {[%emt 0:00:30]} 16. e3 {[%emt 0:02:30]} Rf7 {[%emt 0:04:30]} 17. Nc3 {[%emt 0:01:30]} Bxg2 {[%emt 0:06:30]} 18. Kxg2 {[%emt 0:00:30]} Bf8 {[%emt 0:02:30]} 19. Raf1 {[%emt 0:08:30]} Bxh6 {[%emt 0:02:30]} 20. Qxh6 {[%emt 0:00:30]} Qf8 {[%emt 0:04:30]} 21. Qh4 {[%emt 0:03:30]} Nc6 {[%emt 0:07:30]} 22. Nd5 {[%emt 0:09:30]} Qd6 {[%emt 0:00:30]} 23. Nxf6 {[%emt 0:09:30]} Raf8 {[%emt 0:00:30]} 24. Kg1 {[%emt 0:06:30]} Qe7 {[%emt 0:08:30]} 25. Qh6 {[%emt 0:08:30]} Qe6 {[%emt 0:01:30]} 26. Qg5 {[%emt 0:03:30]} Ne5 {[%emt 0:03:30]} 27. b3 {[%emt 0:03:30]} Nd3 {[%emt 0:03:30]} 28. Rf3 {[%emt 0:00:30]} Ne1 {[%emt 0:05:30]} 29. Rf5 {[%emt 0:03:05]} Nc2 {[%emt 0:01:30]} 30. R5f3 {[%emt 0:03:05]} Ne1 {[%emt 0:00:30]} 31. Rf5 {[%emt 0:00:00]} Nc2 {[%emt 0:00:30]} 32. R5f3 {[%emt 0:01:27]} 1/2-1/2

[Event "1st Turkish League 2017"]
[Site "Konya"]
[Date "2017.07.22"]
[Round "8"]
[White "Sari, Yasin"]
[Black "Gunduz, Umut Erdem"]
[Result "1-0"]
[ECO "A61"]
[WhiteElo "2195"]
[BlackElo "2066"]
[Annotator "NA"]
[PlyCount "83"]
[EventType "team-tourn"]
[EventCountry "TUR"]
[SourceTitle "playchess.com"]
[Source "ChessBase"]
[SourceQuality "1"]
[TimeControl "5400+30"]

1. d4 {[%emt 0:00:00]} Nf6 {[%emt 0:00:00]} 2. c4 {[%emt 0:00:00]} c5 {[%emt 0:00:00]} 3. d5 {[%emt 0:00:00]} e6 {[%emt 0:00:00]} 4. Nc3 {[%emt 0:00:00]} exd5 {[%emt 0:00:00]} 5. cxd5 {[%emt 0:00:30]} d6 {[%emt 0:00:00]} 6. Nf3 {[%emt 0:00:30]} g6 {[%emt 0:00:30]} 7. Bf4 {[%emt 0:00:30]} a6 {[%emt 0:00:30]} 8. a4 {[%emt 0:00:30]} Nh5 {[%emt 0:00:30] [%clk 1:32]} 9. Bg5 {[%emt 0:03:30]} f6 {[%emt 0:03:30]} 10. Bh4 {[%emt 0:12:30]} g5 {[%emt 0:07:30]} 11. Bg3 {[%emt 0:01:30]} f5 {[%emt 0:00:30]} 12. e3 {[%emt 0:01:30]} Be7 {[%emt 0:07:30]} 13. Nd2 {[%emt 0:02:30]} Ng7 {[%emt 0:01:30]} 14. Bd3 {[%emt 0:11:30]} O-O {[%emt 0:02:30]} 15. f4 {[%emt 0:05:30]} g4 {[%emt 0:05:30]} 16. Bf2 {[%emt 0:01:30]} Nd7 {[%emt 0:08:30]} 17. h3 {[%emt 0:07:30]} Nf6 {[%emt 0:02:30]} 18. hxg4 {[%emt 0:03:30]} Nxg4 {[%emt 0:00:30]} 19. Nc4 {[%emt 0:07:30]} Bf6 {[%emt 0:08:30]} 20. Qf3 {[%emt 0:04:30]} Qe7 {[%emt 0:08:30]} 21. Nb6 {[%emt 0:10:30]} Rb8 {[%emt 0:00:30]} 22. Kd2 {[%emt 0:01:30]} Bd7 {[%emt 0:09:30]} 23. Rae1 {[%emt 0:00:30]} Qd8 {[%emt 0:07:30]} 24. a5 {[%emt 0:01:30]} Nxf2 {[%emt 0:00:30]} 25. Qxf2 {[%emt 0:00:30]} Bb5 {[%emt 0:00:30]} 26. Bc2 {[%emt 0:02:30]} Be8 {[%emt 0:05:30]} 27. g4 {[%emt 0:02:08]} Bg6 {[%emt 0:03:03]} 28. Reg1 {[%emt 0:04:32]} Qe7 {[%emt 0:04:52]} 29. Qh2 {[%emt 0:03:25]} Rbe8 {[%emt 0:01:07]} 30. Nc4 {[%emt 0:00:09]} Qf7 {[%emt 0:04:09]} 31. gxf5 {[%emt 0:06:45]} Bxc3+ {[%emt 0:01:45]} 32. Kxc3 {[%emt 0:00:41]} Qf6+ {[%emt 0:04:41]} 33. Kd2 {[%emt 0:01:50]} Bxf5 {[%emt 0:00:38]} 34. Bxf5 {[%emt 0:01:22]} Qxf5 {[%emt 0:00:07]} 35. Nxd6 {[%emt 0:01:21]} Qxd5+ {[%emt 0:01:53]} 36. Kc1 {[%emt 0:00:12]} Qd3 {[%emt 0:01:15]} 37. e4 {[%emt 0:01:35]} h5 {[%emt 0:01:16]} 38. Qxh5 {[%emt 0:00:52]} Qe3+ {[%emt 0:01:24]} 39. Kb1 {[%emt 0:00:23]} Qd3+ {[%emt 0:00:41]} 40. Ka2 {[%emt 0:00:34]} Qxd6 {[%emt 0:00:48]} 41. Qh7+ {[%emt 0:00:30]} Kf7 {[%emt 0:00:00]} 42. Qxg7+ {[%emt 0:00:00]} 1-0

[Event "1st Turkish League 2017"]
[Site "Konya"]
[Date "2017.07.22"]
[Round "8"]
[White "Olcum, Ahmet"]
[Black "Caglar, Ahmet Ata"]
[Result "1-0"]
[ECO "B23"]
[WhiteElo "2183"]
[BlackElo "2082"]
[Annotator "NA"]
[PlyCount "35"]
[EventType "team-tourn"]
[EventCountry "TUR"]
[SourceTitle "playchess.com"]
[Source "ChessBase"]
[SourceQuality "1"]
[TimeControl "5400+30"]

1. e4 {[%emt 0:00:30]} c5 {[%emt 0:02:00]} 2. d3 {[%emt 0:00:30]} Nc6 {[%emt 0:00:30]} 3. Nc3 {[%emt 0:00:30] [%clk 1:28]} Nf6 {[%emt 0:02:30]} 4. g3 {[%emt 0:02:30]} d5 {[%emt 0:01:30]} 5. exd5 {[%emt 0:01:30]} Nxd5 {[%emt 0:00:30]} 6. Bg2 {[%emt 0:00:00]} e6 {[%emt 0:08:30]} 7. Nge2 {[%emt 0:05:00]} Be7 {[%emt 0:00:30]} 8. O-O {[%emt 0:01:30]} O-O {[%emt 0:00:30]} 9. f4 {[%emt 0:04:30]} Bf6 {[%emt 0:02:30]} 10. Kh1 {[%emt 0:04:30]} b6 {[%emt 0:04:30]} 11. f5 {[%emt 0:09:30]} Qd7 {[%emt 0:20:30]} 12. Nxd5 {[%emt 0:15:30]} exd5 {[%emt 0:00:30]} 13. Nf4 {[%emt 0:00:00]} d4 {[%emt 0:06:30]} 14. Nd5 {[%emt 0:02:00]} Be5 {[%emt 0:11:30]} 15. f6 {[%emt 0:05:30]} gxf6 {[%emt 0:11:30]} 16. Bh6 {[%emt 0:06:30]} Re8 {[%emt 0:04:30]} 17. Qh5 {[%emt 0:14:30]} Bb7 {[%emt 0:00:30]} 18. Rxf6 {[%emt 0:00:30]} 1-0

[Event "1st Turkish League 2017"]
[Site "Konya"]
[Date "2017.07.22"]
[Round "8"]
[White "Dogan, Ali Ekber"]
[Black "Zeydan, Salih"]
[Result "1/2-1/2"]
[ECO "E04"]
[WhiteElo "2136"]
[BlackElo "2001"]
[Annotator "NA"]
[PlyCount "143"]
[EventType "team-tourn"]
[EventCountry "TUR"]
[SourceTitle "playchess.com"]
[Source "ChessBase"]
[SourceQuality "1"]
[TimeControl "5400+30"]

1. d4 {[%emt 0:00:00]} Nf6 {[%emt 0:00:00]} 2. c4 {[%emt 0:00:00]} e6 {[%emt 0:00:30]} 3. g3 {[%emt 0:00:00]} d5 {[%emt 0:00:30]} 4. Nf3 {[%emt 0:00:00]} dxc4 {[%emt 0:00:30]} 5. Bg2 {[%emt 0:00:30]} Bb4+ {[%emt 0:00:30]} 6. Bd2 {[%emt 0:00:30]} a5 {[%emt 0:00:30]} 7. Qc2 {[%emt 0:00:30]} Bxd2+ {[%emt 0:01:30] [%clk 1:29]} 8. Qxd2 {[%emt 0:01:30]} c6 {[%emt 0:01:30]} 9. a4 {[%emt 0:01:30]} Ne4 {[%emt 0:01:30]} 10. Qc2 {[%emt 0:00:30]} Nd6 {[%emt 0:00:00]} 11. Na3 {[%emt 0:06:30]} Na6 {[%emt 0:01:00]} 12. Nxc4 {[%emt 0:00:30]} Nb4 {[%emt 0:00:30]} 13. Nxd6+ {[%emt 0:04:30]} Qxd6 {[%emt 0:00:30]} 14. Qd2 {[%emt 0:02:30]} O-O {[%emt 0:00:30]} 15. O-O {[%emt 0:01:30]} b6 {[%emt 0:01:30]} 16. Rfc1 {[%emt 0:07:30]} Rd8 {[%emt 0:04:30]} 17. Qf4 {[%emt 0:13:30]} Ba6 {[%emt 0:05:30]} 18. Qxd6 {[%emt 0:04:30]} Rxd6 {[%emt 0:00:30]} 19. e3 {[%emt 0:00:30]} Nd3 {[%emt 0:11:30]} 20. Rc2 {[%emt 0:00:30]} Rad8 {[%emt 0:02:30]} 21. Bf1 {[%emt 0:07:30]} c5 {[%emt 0:11:30]} 22. Rc3 {[%emt 0:06:30]} cxd4 {[%emt 0:06:30]} 23. Rxd3 {[%emt 0:01:30]} Bxd3 {[%emt 0:00:30]} 24. Bxd3 {[%emt 0:00:30]} dxe3 {[%emt 0:00:30]} 25. Be2 {[%emt 0:00:00]} Rc8 {[%emt 0:08:30]} 26. fxe3 {[%emt 0:01:00]} Rc2 {[%emt 0:00:30]} 27. Kf2 {[%emt 0:00:30]} Rxb2 {[%emt 0:00:30]} 28. Rc1 {[%emt 0:00:30]} g6 {[%emt 0:01:30]} 29. Rc8+ {[%emt 0:03:30]} Kg7 {[%emt 0:00:30]} 30. Rc7 {[%emt 0:00:30]} Kf6 {[%emt 0:01:30]} 31. g4 {[%emt 0:01:30]} h6 {[%emt 0:02:30]} 32. h4 {[%emt 0:00:30]} Kg7 {[%emt 0:02:30]} 33. g5 {[%emt 0:03:30]} h5 {[%emt 0:03:30]} 34. Nd4 {[%emt 0:02:30]} Ra2 {[%emt 0:02:30]} 35. Kf3 {[%emt 0:08:30]} Rxa4 {[%emt 0:04:30]} 36. Bc4 {[%emt 0:03:12]} Kf8 {[%emt 0:01:30]} 37. Ke4 {[%emt 0:00:50]} b5 {[%emt 0:04:30]} 38. Bxb5 {[%emt 0:01:25]} Rb4 {[%emt 0:02:45]} 39. Bc4 {[%emt 0:00:29]} Rdb6 {[%emt 0:00:31]} 40. Ke5 {[%emt 0:04:36]} Rb7 {[%emt 0:00:49]} 41. Rc8+ {[%emt 0:00:58]} Kg7 {[%emt 0:00:05]} 42. Ba6 {[%emt 0:00:10]} Ra7 {[%emt 0:01:52]} 43. Bd3 {[%emt 0:01:22]} Rd7 {[%emt 0:01:54]} 44. Be4 {[%emt 0:02:37]} a4 {[%emt 0:04:04]} 45. Ra8 {[%emt 0:00:31]} Rc7 {[%emt 0:01:12]} 46. Kd6 {[%emt 0:04:16]} Rc3 {[%emt 0:01:04]} 47. Ra7 {[%emt 0:02:32]} Rb6+ {[%emt 0:00:43]} 48. Bc6 {[%emt 0:02:08]} Rxe3 {[%emt 0:00:32]} 49. Nb5 {[%emt 0:01:39]} Rb8 {[%emt 0:05:41]} 50. Kc7 {[%emt 0:00:38]} Rf8 {[%emt 0:00:21]} 51. Rxa4 {[%emt 0:01:03]} Rh3 {[%emt 0:03:18]} 52. Nd6 {[%emt 0:00:27]} f6 {[%emt 0:01:49]} 53. Ne8+ {[%emt 0:01:25]} Rxe8 {[%emt 0:00:30]} 54. Bxe8 {[%emt 0:00:00]} Rg3 {[%emt 0:00:32]} 55. Ra5 {[%emt 0:01:00]} e5 {[%emt 0:00:31]} 56. gxf6+ {[%emt 0:01:00]} Kxf6 {[%emt 0:00:30]} 57. Ra6+ {[%emt 0:00:00]} Kf5 {[%emt 0:00:10]} 58. Bd7+ {[%emt 0:00:02]} Kf4 {[%emt 0:00:29]} 59. Rf6+ {[%emt 0:00:07]} Ke3 {[%emt 0:00:04]} 60. Kd6 {[%emt 0:00:41]} e4 {[%emt 0:00:51]} 61. Ke5 {[%emt 0:00:38]} g5 {[%emt 0:00:42]} 62. Rh6 {[%emt 0:00:22]} gxh4 {[%emt 0:00:10]} 63. Rxh5 {[%emt 0:00:02]} Rg7 {[%emt 0:01:07]} 64. Be6 {[%emt 0:00:18]} Kf3 {[%emt 0:00:35]} 65. Rxh4 {[%emt 0:00:41]} e3 {[%emt 0:00:18]} 66. Bd5+ {[%emt 0:01:16]} Kg3 {[%emt 0:00:36]} 67. Re4 {[%emt 0:01:00]} Re7+ {[%emt 0:00:11]} 68. Be6 {[%emt 0:00:00]} Kf2 {[%emt 0:00:45]} 69. Rf4+ {[%emt 0:00:56]} Kg3 {[%emt 0:00:29]} 70. Re4 {[%emt 0:00:36]} Kf2 {[%emt 0:00:12]} 71. Rf4+ {[%emt 0:00:26]} Kg3 {[%emt 0:00:01]} 72. Re4 {[%emt 0:00:29]} 1/2-1/2

[Event "1st Turkish League 2017"]
[Site "Konya"]
[Date "2017.07.22"]
[Round "8"]
[White "Rzayev, Askar Aliakbar"]
[Black "Cakiroglu, Metin"]
[Result "0-1"]
[ECO "A55"]
[WhiteElo "2080"]
[BlackElo "1993"]
[Annotator "NA"]
[PlyCount "99"]
[EventType "team-tourn"]
[EventCountry "TUR"]
[SourceTitle "playchess.com"]
[Source "ChessBase"]
[SourceQuality "1"]
[TimeControl "5400+30"]

1. Nf3 {[%emt 0:00:00]} d6 {[%emt 0:00:00]} 2. d4 {[%emt 0:00:00]} Nd7 {[%emt 0:00:00]} 3. c4 {[%emt 0:00:30]} e5 {[%emt 0:00:00]} 4. e4 {[%emt 0:00:30]} Ngf6 {[%emt 0:00:30]} 5. Nc3 {[%emt 0:00:30]} c6 {[%emt 0:00:30]} 6. g3 {[%emt 0:00:30]} Be7 {[%emt 0:00:00]} 7. Bg2 {[%emt 0:00:30]} O-O {[%emt 0:00:00]} 8. O-O {[%emt 0:00:30]} Re8 {[%emt 0:00:30]} 9. Re1 {[%emt 0:00:30]} Bf8 {[%emt 0:00:30]} 10. h3 {[%emt 0:00:30] [%clk 1:30]} g6 {[%emt 0:00:30]} 11. b3 {[%emt 0:07:30]} Bg7 {[%emt 0:00:30]} 12. d5 {[%emt 0:01:30]} Qc7 {[%emt 0:03:30]} 13. Ba3 {[%emt 0:05:30]} c5 {[%emt 0:01:30]} 14. Qd3 {[%emt 0:02:30]} Nh5 {[%emt 0:04:30]} 15. Bc1 {[%emt 0:00:30]} Nf8 {[%emt 0:04:30]} 16. Bd2 {[%emt 0:04:30]} f5 {[%emt 0:05:30]} 17. Qe2 {[%emt 0:03:30]} Bd7 {[%emt 0:13:30]} 18. b4 {[%emt 0:07:30]} cxb4 {[%emt 0:07:30]} 19. Nb5 {[%emt 0:00:30]} Bxb5 {[%emt 0:00:30]} 20. cxb5 {[%emt 0:00:00]} a5 {[%emt 0:02:30]} 21. bxa6 {[%emt 0:00:00]} bxa6 {[%emt 0:01:30]} 22. Bxb4 {[%emt 0:00:30]} Qb6 {[%emt 0:05:30]} 23. Rab1 {[%emt 0:03:30]} Nxg3 {[%emt 0:01:30]} 24. Qd3 {[%emt 0:20:30]} Nxe4 {[%emt 0:05:30]} 25. Rxe4 {[%emt 0:00:00]} fxe4 {[%emt 0:00:30]} 26. Qxe4 {[%emt 0:00:00]} Rab8 {[%emt 0:00:30]} 27. Rb3 {[%emt 0:00:30]} Nd7 {[%emt 0:01:30]} 28. Ng5 {[%emt 0:02:30]} Nf6 {[%emt 0:04:30]} 29. Qh4 {[%emt 0:05:30]} Qd4 {[%emt 0:01:30]} 30. Qxd4 {[%emt 0:00:30]} exd4 {[%emt 0:00:30]} 31. Ne6 {[%emt 0:00:30]} Nd7 {[%emt 0:04:30]} 32. Bxd6 {[%emt 0:04:30]} Rxb3 {[%emt 0:00:30]} 33. axb3 {[%emt 0:00:00]} d3 {[%emt 0:00:30]} 34. Bf4 {[%emt 0:05:00]} Bc3 {[%emt 0:02:30]} 35. Kf1 {[%emt 0:05:30]} Nc5 {[%emt 0:04:30]} 36. Be3 {[%emt 0:04:51]} Nxe6 {[%emt 0:06:30]} 37. dxe6 {[%emt 0:00:09]} Kg7 {[%emt 0:00:30]} 38. Bd5 {[%emt 0:07:51]} d2 {[%emt 0:03:24]} 39. Ke2 {[%emt 0:02:47]} d1=Q+ {[%emt 0:01:57]} 40. Kxd1 {[%emt 0:00:30]} Rd8 {[%emt 0:00:00]} 41. e7 {[%emt 0:02:36]} Rxd5+ {[%emt 0:00:29]} 42. Kc2 {[%emt 0:00:30]} Kf7 {[%emt 0:00:30]} 43. Kxc3 {[%emt 0:00:00]} Kxe7 {[%emt 0:00:00]} 44. h4 {[%emt 0:00:26]} Ke6 {[%emt 0:00:00]} 45. Kc4 {[%emt 0:00:25]} Rb5 {[%emt 0:00:26]} 46. b4 {[%emt 0:00:12]} Kf5 {[%emt 0:00:12]} 47. Bg5 {[%emt 0:00:44]} Kg4 {[%emt 0:01:16]} 48. f4 {[%emt 0:00:12]} Kh5 {[%emt 0:00:00]} 49. Bf6 {[%emt 0:00:52]} Rf5 {[%emt 0:00:19]} 50. Kd4 {[%emt 0:00:53]} 0-1

[Event "1st Turkish League 2017"]
[Site "Konya"]
[Date "2017.07.22"]
[Round "8"]
[White "Koc, Ilkay"]
[Black "Korkmaz, Necmettin"]
[Result "0-1"]
[ECO "D13"]
[WhiteElo "2074"]
[BlackElo "2078"]
[Annotator "NA"]
[PlyCount "84"]
[EventType "team-tourn"]
[EventCountry "TUR"]
[SourceTitle "playchess.com"]
[Source "ChessBase"]
[SourceQuality "1"]
[TimeControl "5400+30"]

1. d4 {[%emt 0:00:00]} d5 {[%emt 0:00:00]} 2. c4 {[%emt 0:00:00]} c6 {[%emt 0:00:00]} 3. cxd5 {[%emt 0:00:30]} cxd5 {[%emt 0:00:00]} 4. Nc3 {[%emt 0:00:30]} Nf6 {[%emt 0:00:30]} 5. Nf3 {[%emt 0:00:30]} Nc6 {[%emt 0:00:30]} 6. Bf4 {[%emt 0:00:30]} a6 {[%emt 0:00:30]} 7. e3 {[%emt 0:00:30]} Bg4 {[%emt 0:00:30] [%clk 1:30]} 8. h3 {[%emt 0:01:30]} Bf5 {[%emt 0:08:30]} 9. g4 {[%emt 0:01:30]} Bc8 {[%emt 0:02:30]} 10. Bg2 {[%emt 0:02:30]} e6 {[%emt 0:00:30]} 11. Ne5 {[%emt 0:07:30]} Bd6 {[%emt 0:03:30]} 12. Bg3 {[%emt 0:12:30]} O-O {[%emt 0:11:30]} 13. O-O {[%emt 0:00:30]} Ne8 {[%emt 0:09:30]} 14. Rc1 {[%emt 0:02:30]} Bd7 {[%emt 0:07:30]} 15. e4 {[%emt 0:15:30]} Bxe5 {[%emt 0:06:30]} 16. dxe5 {[%emt 0:03:30]} d4 {[%emt 0:00:30]} 17. Ne2 {[%emt 0:01:30]} Qb6 {[%emt 0:01:30]} 18. Qd2 {[%emt 0:00:30]} Rd8 {[%emt 0:03:30]} 19. Bh4 {[%emt 0:02:30]} f6 {[%emt 0:02:30]} 20. exf6 {[%emt 0:02:30]} Nxf6 {[%emt 0:01:30]} 21. g5 {[%emt 0:00:30]} Nh5 {[%emt 0:06:30]} 22. g6 {[%emt 0:01:30]} hxg6 {[%emt 0:01:30]} 23. Bxd8 {[%emt 0:02:30]} Rxd8 {[%emt 0:00:30]} 24. e5 {[%emt 0:01:30]} Be8 {[%emt 0:00:30]} 25. Qg5 {[%emt 0:13:30]} d3 {[%emt 0:00:30]} 26. Nc3 {[%emt 0:00:30]} Qd4 {[%emt 0:03:30]} 27. Rce1 {[%emt 0:02:30]} Qf4 {[%emt 0:09:30]} 28. Qxf4 {[%emt 0:05:20]} Nxf4 {[%emt 0:00:00]} 29. Re3 {[%emt 0:01:46]} b5 {[%emt 0:00:00]} 30. a3 {[%emt 0:01:44]} g5 {[%emt 0:01:30]} 31. Rd1 {[%emt 0:00:32]} Nd4 {[%emt 0:00:30]} 32. Ne4 {[%emt 0:02:56]} Bh5 {[%emt 0:01:16]} 33. Rdxd3 {[%emt 0:13:12]} Nxd3 {[%emt 0:00:03]} 34. Nxg5 {[%emt 0:00:01]} Ne2+ {[%emt 0:03:25]} 35. Kh2 {[%emt 0:00:13]} Ndf4 {[%emt 0:01:02]} 36. Bb7 {[%emt 0:00:26]} Rd2 {[%emt 0:00:16]} 37. b4 {[%emt 0:01:42]} Nd4 {[%emt 0:00:18]} 38. Rc3 {[%emt 0:00:04]} Rxf2+ {[%emt 0:01:46]} 39. Kg3 {[%emt 0:00:40]} Rg2+ {[%emt 0:00:59]} 40. Kxf4 {[%emt 0:01:30]} Ne2+ {[%emt 0:00:07]} 41. Ke3 {[%emt 0:00:28]} Rg3+ {[%emt 0:00:10]} 42. Kd2 {[%emt 0:00:24]} Nxc3 {[%emt 0:00:36]} 0-1